bitfinex/quotes_BTCUSD_20250114
["timestamp","ask_amount","ask_price","bid_price","bid_amount"]
[1736872368172,0.005,95963.0,95962.0,7.247e-05]
[1736872368352,0.105,95963.0,95962.0,7.247e-05]
[1736872368673,0.0066,95964.0,95962.0,7.247e-05]
[1736872368876,0.216413,95963.0,95962.0,7.247e-05]
[1736872369077,0.008,95963.0,95962.0,7.247e-05]
[1736872369279,0.108,95963.0,95962.0,7.247e-05]
[1736872369539,0.112,95963.0,95962.0,0.05211705]
[1736872369734,0.104,95963.0,95962.0,0.05211705]
[1736872369938,0.106,95963.0,95962.0,0.05211705]
[1736872370468,0.1,95963.0,95962.0,0.05211705]
[1736872370786,0.101,95963.0,95962.0,0.05211705]
[1736872371194,0.1,95963.0,95962.0,0.05991401]
[1736872371392,0.0066,95969.0,95962.0,0.05991401]
[1736872371611,0.1,95991.0,95963.0,0.1217]
[1736872371817,0.208363,95986.0,95975.0,0.208385]
[1736872372044,0.15,95989.0,95964.0,0.10422692]
[1736872372428,0.308355,95990.0,95964.0,0.10422692]
[1736872372429,0.208368,95984.0,95975.0,0.05204458]
[1736872372558,0.1,95990.0,95976.0,0.02027072]
[1736872372761,0.10179235,95987.0,95980.0,0.208374]
[1736872372991,0.10779235,95987.0,95977.0,0.208382]
[1736872373192,0.00779235,95987.0,95977.0,0.208382]
[1736872373386,0.00179235,95987.0,95977.0,0.208382]
[1736872373570,0.00179235,95987.0,95981.0,0.22864372]
[1736872373765,0.10179235,95987.0,95981.0,0.02027072]
[1736872374036,0.00179235,95987.0,95981.0,0.22864372]
[1736872374281,0.00179235,95987.0,95985.0,0.208365]
[1736872374506,0.00179235,95987.0,95986.0,0.22592692]
[1736872374975,0.00179235,95987.0,95986.0,0.17374458]
[1736872375215,0.00179235,95987.0,95986.0,0.2779715]
[1736872375797,0.00279235,95987.0,95986.0,0.2789715]
[1736872376276,0.00279235,95987.0,95986.0,0.2779715]
[1736872376450,0.00379235,95987.0,95986.0,0.29924222]
[1736872376675,0.00379235,95987.0,95986.0,0.2000153]
[1736872376872,0.00379235,95987.0,95986.0,0.1547153]
[1736872377530,0.00379235,95987.0,95986.0,0.3580783]
[1736872377740,0.00379235,95987.0,95986.0,0.46230522]
[1736872377937,0.00179235,95987.0,95986.0,0.45283146]
[1736872378382,0.00179235,95987.0,95986.0,0.45383146]
[1736872378603,0.00179235,95987.0,95986.0,0.45283146]
[1736872378970,0.1,96013.0,96012.0,0.0764]
[1736872379329,0.214886,96022.0,96012.0,0.12844458]
[1736872379539,0.208289,96020.0,96012.0,0.12844458]
[1736872379918,0.15,96021.0,96012.0,0.12844458]
[1736872380179,0.20826,96034.0,96012.0,0.12844458]
[1736872380180,0.20826,96034.0,96013.0,0.10422692]
[1736872380390,0.0001496,96021.0,96020.0,0.208289]
[1736872380592,0.0001496,96021.0,96020.0,0.53891592]
[1736872380804,0.0461,96073.0,96020.0,0.53891592]
[1736872380805,0.1066,96072.0,96050.0,0.0764]
[1736872381040,0.1,96057.0,96050.0,0.18062692]
[1736872381248,0.1,96057.0,96050.0,0.0764]
[1736872381659,0.00228957,96065.0,96050.0,0.2326715]
[1736872381871,0.1,96060.0,96050.0,0.2326715]
[1736872382086,0.1,96059.0,96050.0,0.12944458]
[1736872382290,0.1,96059.0,96050.0,0.12844458]
[1736872382497,0.1,96051.0,96050.0,0.05204458]
[1736872383560,0.1,96051.0,96050.0,0.05304458]
[1736872383963,0.002,96057.0,96050.0,0.05304458]
[1736872384170,0.002,96057.0,96050.0,0.05204458]
[1736872384386,0.314806,96059.0,96050.0,0.05204458]
[1736872384623,0.314806,96059.0,96050.0,0.05304458]
[1736872384805,0.001,96051.0,96050.0,0.05304458]
[1736872385012,0.314806,96059.0,96050.0,0.05304458]
[1736872385207,0.0066,96059.0,96051.0,0.208222]
[1736872385406,0.003,96057.0,96051.0,0.208222]
[1736872385612,0.003,96057.0,96056.0,0.208211]
[1736872385813,0.003,96057.0,96056.0,0.26025558]
[1736872386178,0.003,96057.0,96056.0,0.05204458]
[1736872386504,0.1,96067.0,96056.0,0.05204458]
[1736872386700,0.416388,96064.0,96056.0,0.05204458]
[1736872387004,0.208204,96060.0,96056.0,0.05204458]
[1736872387205,0.2,96057.0,96056.0,0.05204458]
[1736872387409,0.1,96057.0,96056.0,0.05204458]
[1736872387778,0.002,96057.0,96056.0,0.05204458]
[1736872388226,0.1,96057.0,96056.0,0.05204458]
[1736872388398,0.37430136,96057.0,96056.0,0.05204458]
[1736872388599,0.38156,96057.0,96056.0,0.05204458]
[1736872388918,0.37956,96057.0,96056.0,0.05204458]
[1736872389276,0.37956,96057.0,96056.0,0.05404458]
[1736872389443,0.48378692,96057.0,96056.0,0.05204458]
[1736872389824,0.208246,96040.0,96026.0,0.287976]
[1736872390031,0.208246,96040.0,96026.0,0.0797]
[1736872390263,0.1,96032.0,96014.0,0.0797]
[1736872390411,0.208294,96019.0,96012.0,0.000853]
[1736872390617,0.208302,96015.0,96012.0,0.000853]
[1736872390825,0.35,96013.0,96012.0,0.000853]
[1736872391089,0.35656,96013.0,96012.0,0.000853]
[1736872391521,0.37956,96013.0,96012.0,0.003493]
[1736872391742,0.373,96013.0,96012.0,0.003493]
[1736872391947,0.37956,96013.0,96012.0,0.003493]
[1736872392538,0.40086727,96013.0,96012.0,0.004493]
[1736872392743,0.39386727,96013.0,96012.0,0.003493]
[1736872392938,0.44626562,96013.0,96012.0,0.003493]
[1736872393185,0.45426562,96013.0,96012.0,0.004493]
[1736872393774,0.008,96013.0,96012.0,0.004493]
[1736872394344,0.002,96013.0,96012.0,0.003493]
[1736872394542,0.002,96013.0,96012.0,0.004493]
[1736872394787,0.009,96013.0,96012.0,0.004493]
[1736872394945,0.009,96013.0,96012.0,0.003493]
[1736872395140,0.01,96013.0,96012.0,0.004493]
[1736872395352,0.11,96013.0,96012.0,0.004493]
[1736872395558,0.22430197,96013.0,96012.0,0.004493]
[1736872395760,0.224,96013.0,96012.0,0.004493]
[1736872396181,0.223,96013.0,96012.0,0.004493]
[1736872396394,0.2,96013.0,96012.0,0.004493]
[1736872396613,0.2,96013.0,96012.0,0.003493]
[1736872396816,0.2,96013.0,96012.0,0.004493]
[1736872397787,0.2,96013.0,96012.0,0.003493]
[1736872398066,0.227,96013.0,96012.0,0.003493]
[1736872398265,0.377,96013.0,96012.0,0.003493]
[1736872398467,0.373,96013.0,96012.0,0.003493]
[1736872398749,0.379,96013.0,96012.0,0.004493]
[1736872398920,0.49434364,96013.0,96012.0,0.004493]
[1736872400088,0.49534364,96013.0,96012.0,0.004493]
[1736872400489,0.49534364,96013.0,95964.0,0.01238542]
[1736872400490,0.1,95978.0,95958.0,0.0479]
[1736872400694,0.1,95968.0,95962.0,0.0010031]
[1736872400936,0.20647188,95972.0,95962.0,0.0010031]
[1736872400937,0.308413,95963.0,95962.0,0.0010031]
[1736872401949,0.308413,95963.0,95962.0,0.0030031]
[1736872401950,0.208413,95963.0,95962.0,0.0030031]
[1736872402167,0.208413,95963.0,95962.0,0.0010031]
[1736872402592,0.208413,95963.0,95962.0,0.05709512]
[1736872403365,0.208413,95963.0,95962.0,0.06009512]
[1736872403748,0.208413,95963.0,95962.0,0.05709512]
[1736872404135,0.208413,95963.0,95962.0,0.05309512]
[1736872404320,0.211413,95963.0,95962.0,0.05309512]
[1736872404522,0.208413,95963.0,95962.0,0.05309512]
[1736872405016,0.209413,95963.0,95962.0,0.05309512]
[1736872407296,0.61992162,95963.0,95962.0,0.05309512]
[1736872407789,0.89682162,95963.0,95962.0,7e-07]
[1736872407975,1.01813267,95963.0,95962.0,7e-07]
[1736872408175,1.03206563,95963.0,95962.0,7e-07]
[1736872408375,1.03106563,95963.0,95962.0,7e-07]
[1736872409150,1.03806563,95963.0,95962.0,7e-07]
[1736872409477,1.00537399,95963.0,95962.0,7e-07]
[1736872409952,1.00337399,95963.0,95962.0,7e-07]
[1736872410267,0.99637399,95963.0,95962.0,7e-07]
[1736872410664,1.00537399,95963.0,95962.0,7e-07]
[1736872410834,1.01871402,95963.0,95962.0,0.0010007]
[1736872411277,1.02171402,95963.0,95962.0,7e-07]
[1736872411508,0.84499232,95963.0,95962.0,7e-07]
[1736872412549,0.76929232,95963.0,95962.0,0.0010007]
[1736872413626,0.72409232,95963.0,95962.0,0.0010007]
[1736872413996,0.70775229,95963.0,95962.0,0.0010007]
[1736872414415,0.81197921,95963.0,95962.0,0.0010007]
[1736872414619,0.70775229,95963.0,95962.0,0.0018542]
[1736872415037,0.70054464,95963.0,95962.0,0.0018542]
[1736872415248,0.70954464,95963.0,95962.0,0.0018542]
[1736872415419,0.70298464,95963.0,95962.0,0.0018542]
[1736872415617,0.52567359,95963.0,95962.0,0.0008542]
[1736872415820,0.29507371,95963.0,95962.0,0.0008542]
[1736872416044,0.54507371,95963.0,95962.0,0.0008542]
[1736872416205,0.56807371,95963.0,95962.0,0.0008542]
[1736872416407,0.54507371,95963.0,95962.0,0.0008542]
[1736872416604,0.54107371,95963.0,95962.0,0.0008542]
[1736872416851,0.56507371,95963.0,95962.0,0.0008542]
[1736872417052,0.55607371,95963.0,95962.0,0.0008542]
[1736872417401,0.56407371,95963.0,95962.0,0.0008542]
[1736872417612,0.19107371,95963.0,95962.0,0.0008542]
[1736872417785,0.00179235,95963.0,95962.0,0.0008542]
[1736872417998,0.00679235,95963.0,95962.0,0.0008542]
[1736872418281,0.00179235,95963.0,95962.0,0.0008542]
[1736872418698,0.00579235,95963.0,95962.0,0.0008542]
[1736872418875,0.00679235,95963.0,95962.0,0.0008542]
[1736872419276,0.00579235,95963.0,95962.0,0.0008542]
[1736872419474,0.21420535,95963.0,95962.0,0.0008542]
[1736872419660,0.21420535,95963.0,95962.0,0.0018542]
[1736872419858,0.21020535,95963.0,95962.0,0.0018542]
[1736872420057,0.74059598,95963.0,95962.0,0.0008542]
[1736872420269,0.7536691,95963.0,95962.0,0.0008542]
[1736872420554,0.7566691,95963.0,95962.0,0.0028542]
[1736872421306,0.7536691,95963.0,95962.0,0.0028542]
[1736872421507,0.7576691,95963.0,95962.0,2e-07]
[1736872421706,0.558465,95939.0,95931.0,0.0004]
[1736872421910,0.78979012,95939.0,95938.0,0.00092617]
[1736872422320,0.69225192,95939.0,95938.0,0.00092617]
[1736872423318,0.69525192,95939.0,95938.0,0.00092617]
[1736872423757,0.69225192,95939.0,95938.0,0.00092617]
[1736872423975,0.90261535,95939.0,95938.0,1.7e-07]
[1736872424117,0.80261535,95939.0,95938.0,1.7e-07]
[1736872424324,0.89361535,95939.0,95938.0,1.7e-07]
[1736872424527,0.79361535,95939.0,95938.0,1.7e-07]
[1736872424726,0.70695535,95939.0,95938.0,1.7e-07]
[1736872425125,0.75796593,95939.0,95938.0,0.05209219]
[1736872425556,0.75296593,95939.0,95938.0,0.05209219]
[1736872425781,0.75296593,95939.0,95938.0,0.05309219]
[1736872425973,0.75896593,95939.0,95938.0,0.05309219]
[1736872426411,0.74396593,95939.0,95938.0,0.05209219]
[1736872426583,0.74040593,95939.0,95938.0,0.05209219]
[1736872426759,0.75596593,95939.0,95938.0,0.05294569]
[1736872426961,0.8045937,95939.0,95938.0,0.05294569]
[1736872427166,0.74696593,95939.0,95938.0,0.05294569]
[1736872427369,0.75496593,95939.0,95938.0,0.05294569]
[1736872428658,0.64840593,95939.0,95938.0,0.05294569]
[1736872428891,0.62773901,95939.0,95938.0,0.05294569]
[1736872429136,0.61139449,95939.0,95938.0,0.05294569]
[1736872429328,0.60483449,95939.0,95938.0,0.05294569]
[1736872429575,0.61139449,95939.0,95938.0,0.05294569]
[1736872430638,0.63439449,95939.0,95938.0,0.05294569]
[1736872430837,0.84284833,95939.0,95938.0,0.05294569]
[1736872431196,0.73862141,95939.0,95938.0,0.05294569]
[1736872433116,0.73206141,95939.0,95938.0,0.05294569]
[1736872433273,0.73862141,95939.0,95938.0,0.05294569]
[1736872433677,0.581481,95932.0,95931.0,0.0004]
[1736872433875,0.68570792,95932.0,95931.0,0.0004]
[1736872434082,0.78993484,95932.0,95931.0,0.0004]
[1736872434596,0.68570792,95932.0,95931.0,0.0004]
[1736872434962,0.70126792,95932.0,95931.0,0.0004]
[1736872436021,0.71761293,95932.0,95931.0,0.0004]
[1736872436184,0.70861293,95932.0,95931.0,1e-06]
[1736872436382,0.82183985,95932.0,95931.0,1e-06]
[1736872436792,0.81883985,95932.0,95931.0,0.001001]
[1736872437000,0.81883985,95932.0,95931.0,1e-06]
[1736872437001,0.82783985,95932.0,95931.0,1e-06]
[1736872437405,0.81883985,95932.0,95931.0,1e-06]
[1736872437680,0.82783985,95932.0,95931.0,1e-06]
[1736872437872,0.92783985,95932.0,95931.0,1e-06]
[1736872438232,0.1,95916.0,95915.0,0.0008535]
[1736872438446,0.54574192,95916.0,95915.0,0.05344517]
[1736872439157,0.54574192,95916.0,95915.0,0.00135315]
[1736872439360,0.69574192,95916.0,95915.0,0.00135315]
[1736872439583,0.68874192,95916.0,95915.0,0.00135315]
[1736872440057,0.69374192,95916.0,95915.0,0.00135315]
[1736872440274,0.71774045,95916.0,95915.0,0.00135315]
[1736872440477,0.561515,95916.0,95915.0,0.00135315]
[1736872440680,0.318075,95916.0,95915.0,0.00135315]
[1736872441055,0.318075,95916.0,95915.0,0.05344517]
[1736872441056,0.427075,95916.0,95915.0,0.05344517]
[1736872441168,0.418075,95916.0,95915.0,0.05344517]
[1736872441567,0.75495992,95916.0,95915.0,0.05344517]
[1736872441772,0.69230192,95916.0,95915.0,0.05344517]
[1736872442015,0.69530192,95916.0,95915.0,0.05344517]
[1736872442428,0.69230192,95916.0,95915.0,0.05344517]
[1736872442595,0.69830192,95916.0,95915.0,0.05344517]
[1736872442812,0.69430192,95916.0,95915.0,0.05344517]
[1736872442978,0.79258261,95916.0,95915.0,0.05344517]
[1736872443178,0.79058261,95916.0,95915.0,0.05344517]
[1736872443606,0.79358261,95916.0,95915.0,0.00135315]
[1736872443814,0.78558261,95916.0,95915.0,0.00135315]
[1736872444245,0.79458261,95916.0,95915.0,0.00135315]
[1736872444503,0.79458261,95916.0,95884.0,0.0766]
[1736872444504,0.408567,95892.0,95884.0,0.0766]
[1736872444667,0.53579392,95892.0,95873.0,0.01245611]
[1736872445326,0.68579392,95892.0,95873.0,0.01245611]
[1736872445851,0.68579392,95892.0,95891.0,0.05249202]
[1736872446063,0.73500671,95892.0,95891.0,0.05249202]
[1736872446241,0.68579392,95892.0,95891.0,0.05249202]
[1736872446450,0.7121087,95892.0,95891.0,0.05249202]
[1736872446657,0.7141087,95892.0,95891.0,2e-08]
[1736872446863,0.7141087,95892.0,95868.0,0.0146217]
[1736872446864,0.558618,95869.0,95868.0,0.0146217]
[1736872447266,0.66284492,95869.0,95868.0,0.0146217]
[1736872447474,0.68584492,95869.0,95868.0,0.0146217]
[1736872447819,0.70219849,95869.0,95868.0,0.0146217]
[1736872448018,0.70219849,95869.0,95868.0,0.01477153]
[1736872449099,0.70875849,95869.0,95868.0,0.01477153]
[1736872449624,0.72247296,95869.0,95868.0,0.01477153]
[1736872449831,0.72547296,95869.0,95868.0,0.01477153]
[1736872450311,0.7561836,95869.0,95868.0,0.01477153]
[1736872450629,0.73147296,95869.0,95868.0,0.01562533]
[1736872450761,0.71891296,95869.0,95868.0,0.01562533]
[1736872450991,0.11935357,95869.0,95868.0,0.01562533]
[1736872451197,0.21,95869.0,95868.0,0.01562533]
[1736872451621,0.21130391,95869.0,95868.0,0.01562533]
[1736872451852,0.23,95869.0,95868.0,0.01562533]
[1736872452056,0.01,95869.0,95868.0,0.06771735]
[1736872452257,0.01,95869.0,95868.0,0.19381735]
[1736872452673,0.1,95882.0,95868.0,0.19381735]
[1736872452882,0.1,95887.0,95875.0,0.208604]
[1736872453084,0.215135,95889.0,95875.0,0.05209202]
[1736872453296,0.208575,95889.0,95876.0,0.208602]
[1736872453511,0.208584,95885.0,95875.0,0.05209202]
[1736872453709,0.1,95887.0,95876.0,0.208602]
[1736872453909,0.10656,95887.0,95876.0,0.208602]
[1736872454134,0.1,95887.0,95881.0,0.208591]
[1736872454335,0.10656,95887.0,95881.0,0.05209202]
[1736872454536,0.331589,95882.0,95881.0,0.05209202]
[1736872454837,0.431589,95882.0,95881.0,0.05209202]
[1736872456082,0.2,95882.0,95881.0,0.05209202]
[1736872456304,0.00656,95882.0,95881.0,0.05209202]
[1736872456506,0.2,95893.0,95882.0,0.208589]
[1736872456711,0.001,95887.0,95886.0,0.208581]
[1736872456912,0.1,95901.0,95887.0,0.0798]
[1736872457087,0.01634806,95898.0,95887.0,0.0798]
[1736872457294,0.01634806,95898.0,95897.0,0.208557]
[1736872457722,0.01634806,95898.0,95897.0,0.05209202]
[1736872457926,0.1,95906.0,95897.0,0.05209202]
[1736872458513,0.1,95906.0,95897.0,0.05224185]
[1736872458718,0.00656,95905.0,95897.0,0.05224185]
[1736872458925,0.208528,95911.0,95897.0,0.05224185]
[1736872459129,0.00656,95910.0,95897.0,0.05324185]
[1736872459330,0.01634744,95908.0,95902.0,0.208546]
[1736872459578,0.01634744,95908.0,95902.0,0.26063802]
[1736872460151,0.01634744,95908.0,95906.0,0.208536]
[1736872460373,0.01634744,95908.0,95906.0,0.26062802]
[1736872460576,0.01634744,95908.0,95907.0,0.18402692]
[1736872460779,0.01634744,95908.0,95907.0,0.23611894]
[1736872461198,0.01634744,95908.0,95907.0,0.28391894]
[1736872461414,0.00179299,95931.0,95930.0,0.208485]
[1736872461588,0.2,95930.0,95908.0,0.208533]
[1736872461808,0.208494,95926.0,95913.0,0.208522]
[1736872462007,0.1,95927.0,95907.0,0.1276]
[1736872462188,0.1,95927.0,95916.0,0.208514]
[1736872462669,0.00049863,95927.0,95907.0,0.1316]
[1736872462843,0.00049863,95927.0,95908.0,0.10422692]
[1736872463072,0.00049863,95927.0,95921.0,0.208504]
[1736872463256,0.00049863,95927.0,95917.0,0.208512]
[1736872463413,0.00449863,95927.0,95917.0,0.208512]
[1736872463824,0.00049863,95927.0,95921.0,0.208503]
[1736872464041,0.00429245,95927.0,95921.0,0.208503]
[1736872464249,0.00429245,95927.0,95921.0,0.26059502]
[1736872464451,0.00429245,95927.0,95925.0,0.208495]
[1736872464623,0.00329245,95927.0,95925.0,0.26058702]
[1736872465026,0.00229245,95927.0,95926.0,0.10422692]
[1736872465275,0.00229245,95927.0,95926.0,0.23611894]
[1736872465872,0.00429245,95927.0,95926.0,0.23611894]
[1736872466078,0.00229245,95927.0,95926.0,0.23611894]
[1736872466285,0.00229245,95927.0,95926.0,0.23811894]
[1736872466439,0.00329245,95927.0,95926.0,0.23811894]
[1736872466677,0.00229245,95927.0,95926.0,0.23611894]
[1736872466880,0.00329245,95927.0,95926.0,0.23811894]
[1736872467102,0.00329245,95927.0,95926.0,0.23611894]
[1736872467343,0.00329245,95927.0,95926.0,0.28391894]
[1736872467544,0.00429245,95927.0,95926.0,0.28591894]
[1736872468332,0.00429245,95927.0,95926.0,0.18169202]
[1736872468532,0.00429245,95927.0,95926.0,0.18669202]
[1736872469080,0.00229245,95927.0,95926.0,0.18469202]
[1736872469411,0.00329245,95927.0,95926.0,0.18669202]
[1736872469622,0.00229245,95927.0,95926.0,0.28891894]
[1736872469816,0.00229245,95927.0,95926.0,0.28391894]
[1736872470023,0.00329245,95927.0,95926.0,0.28591894]
[1736872470221,0.00229245,95927.0,95926.0,0.28691894]
[1736872470645,0.00329245,95927.0,95926.0,0.28591894]
[1736872471063,0.00229245,95927.0,95926.0,0.39761894]
[1736872471224,0.00229245,95927.0,95926.0,0.49641294]
[1736872471580,0.00229245,95927.0,95926.0,0.49241294]
[1736872471781,0.00229245,95927.0,95926.0,0.49741294]
[1736872472368,0.1,95974.0,95926.0,0.20911894]
[1736872472580,0.1,95974.0,95937.0,0.15]
[1736872472752,0.0783,95992.0,95937.0,0.15]
[1736872472753,0.30647188,95960.0,95947.0,0.208446]
[1736872473176,0.30647188,95960.0,95947.0,0.26053802]
[1736872473400,0.208422,95959.0,95947.0,0.26053802]
[1736872473779,0.30647188,95960.0,95948.0,0.208446]
[1736872473975,0.1,95960.0,95948.0,0.26053802]
[1736872474379,0.208422,95959.0,95949.0,0.208444]
[1736872474576,0.208431,95956.0,95949.0,0.05209202]
[1736872474788,0.1,95950.0,95949.0,0.05209202]
[1736872474985,0.373,95950.0,95949.0,0.05209202]
[1736872475415,0.37956,95950.0,95949.0,0.05209202]
[1736872475904,0.48378692,95950.0,95949.0,0.05209202]
[1736872477083,0.48778692,95950.0,95949.0,0.05209202]
[1736872477304,0.48378692,95950.0,95949.0,0.05209202]
[1736872477644,0.48878692,95950.0,95949.0,0.05209202]
[1736872477850,0.48978692,95950.0,95949.0,0.05209202]
[1736872478660,0.156,95950.0,95949.0,0.05209202]
[1736872478895,0.006,95950.0,95949.0,0.05209202]
[1736872479250,0.006,95950.0,95949.0,0.13189202]
[1736872479451,0.006,95950.0,95949.0,0.23611894]
[1736872479764,0.005,95950.0,95949.0,0.23611894]
[1736872479969,0.00179299,95960.0,95958.0,0.208423]
[1736872480217,0.00179299,95960.0,95958.0,0.26051502]
[1736872481296,0.00179299,95960.0,95958.0,0.05209202]
[1736872481425,0.21021399,95960.0,95958.0,0.05209202]
[1736872482448,0.00179299,95960.0,95958.0,0.05209202]
[1736872482850,0.00179299,95960.0,95958.0,0.26051502]
[1736872483049,0.00179299,95960.0,95958.0,0.26151502]
[1736872483250,0.00179299,95960.0,95959.0,0.10422692]
[1736872483465,0.00179299,95960.0,95959.0,0.15631894]
[1736872483862,0.01812906,95960.0,95959.0,0.15631894]
[1736872484071,0.01812906,95960.0,95959.0,0.38611894]
[1736872484268,0.01812906,95960.0,95959.0,0.43391894]
[1736872484491,0.1,95999.0,95962.0,0.2298]
[1736872484747,0.00014964,95998.0,95988.0,0.208357]
[1736872484917,0.00014964,95998.0,95965.0,0.10422692]
[1736872484918,0.00014964,95998.0,95992.0,0.20835]
[1736872485223,0.00014964,95998.0,95996.0,0.20834]
[1736872485447,0.00014964,95998.0,95992.0,0.05209202]
[1736872485448,0.00014964,95998.0,95993.0,0.208346]
[1736872485646,0.00014964,95998.0,95996.0,0.05209202]
[1736872485862,0.00014964,95998.0,95997.0,0.208339]
[1736872486064,0.00014964,95998.0,95997.0,0.26043102]
[1736872486467,0.00014964,95998.0,95997.0,0.05209202]
[1736872486766,0.00970964,95998.0,95997.0,0.05209202]
[1736872486971,0.01070964,95998.0,95997.0,0.05209202]
[1736872487123,0.00770964,95998.0,95997.0,0.05209202]
[1736872487328,0.00970964,95998.0,95997.0,0.05209202]
[1736872487777,0.00770964,95998.0,95997.0,0.05209202]
[1736872488181,0.00114964,95998.0,95997.0,0.05209202]
[1736872489007,0.00314964,95998.0,95997.0,0.05209202]
[1736872489356,0.00014964,95998.0,95997.0,0.15631894]
[1736872489556,0.00294263,95998.0,95997.0,0.16031894]
[1736872490421,0.00294263,95998.0,95997.0,0.15731894]
[1736872490422,0.00194263,95998.0,95997.0,0.15731894]
[1736872490665,0.00294263,95998.0,95997.0,0.16131894]
[1736872490945,0.00294263,95998.0,95997.0,0.23711894]
[1736872491649,0.00294263,95998.0,95997.0,0.24111894]
[1736872492957,0.00194263,95998.0,95997.0,0.23711894]
[1736872493358,0.00294263,95998.0,95997.0,0.23711894]
[1736872493557,0.00194263,95998.0,95997.0,0.23311894]
[1736872493760,0.00194263,95998.0,95997.0,0.23611894]
[1736872493938,0.00294263,95998.0,95997.0,0.24011894]
[1736872494139,0.00294263,95998.0,95997.0,0.23711894]
[1736872494511,0.00294263,95998.0,95997.0,0.24111894]
[1736872496864,0.00294263,95998.0,95997.0,0.06009202]
[1736872497713,0.00194263,95998.0,95997.0,0.05209202]
[1736872497916,0.00194263,95998.0,95997.0,0.05509202]
[1736872498061,0.00194263,95998.0,95997.0,0.05709202]
[1736872499196,0.00194263,95998.0,95997.0,0.05209202]
[1736872499395,0.00294263,95998.0,95997.0,0.05609202]
[1736872499599,0.00294263,95998.0,95997.0,0.05709202]
[1736872499908,0.00194263,95998.0,95997.0,0.05309202]
[1736872500123,0.00194263,95998.0,95997.0,0.05209202]
[1736872500285,0.00194263,95998.0,95997.0,0.05709202]
[1736872500693,0.00194263,95998.0,95997.0,0.26543102]
[1736872501090,0.21027963,95998.0,95997.0,0.05509202]
[1736872501293,0.31027963,95998.0,95997.0,0.05509202]
[1736872501597,0.59592849,95998.0,95997.0,0.05509202]
[1736872501843,0.20194263,95998.0,95997.0,0.05509202]
[1736872502043,0.00194263,95998.0,95997.0,0.26343102]
[1736872502241,0.00194263,95998.0,95997.0,0.26043102]
[1736872502414,0.00294263,95998.0,95997.0,0.26043102]
[1736872502591,0.00594263,95998.0,95997.0,0.05209202]
[1736872502791,0.00294263,95998.0,95997.0,0.05209202]
[1736872502997,0.00194263,95998.0,95997.0,0.05209202]
[1736872503245,0.00694263,95998.0,95997.0,0.05409202]
[1736872503419,0.00194263,95998.0,95997.0,0.05409202]
[1736872503817,0.00194263,95998.0,95997.0,0.05609202]
[1736872504057,0.00194263,95998.0,95997.0,0.15831894]
[1736872504561,0.00185055,95998.0,95997.0,0.15831894]
[1736872505097,0.00185055,95998.0,95997.0,0.05409202]
[1736872505562,0.00185055,95998.0,95997.0,0.05509202]
[1736872505715,0.00185055,95998.0,95997.0,0.05209202]
[1736872505932,0.00185055,95998.0,95997.0,0.05409202]
[1736872506132,0.00185055,95998.0,95997.0,0.05809202]
[1736872506332,0.00185055,95998.0,95997.0,0.05209202]
[1736872506537,0.00185055,95998.0,95997.0,0.05509202]
[1736872506844,0.21018755,95998.0,95997.0,0.05509202]
[1736872507048,0.41018755,95998.0,95997.0,0.05209202]
[1736872507246,0.43318755,95998.0,95997.0,0.05209202]
[1736872507468,0.43318755,95998.0,95997.0,0.05309202]
[1736872509440,0.43318755,95998.0,95997.0,0.05209202]
[1736872510078,0.53741447,95998.0,95997.0,0.05209202]
[1736872510291,0.73621447,95998.0,95997.0,0.05209202]
[1736872510863,0.74221447,95998.0,95997.0,0.05209202]
[1736872511099,0.73721447,95998.0,95997.0,0.05209202]
[1736872511299,0.73621447,95998.0,95997.0,0.05209202]
[1736872511663,0.64350755,95998.0,95997.0,0.05209202]
[1736872512774,0.59470755,95998.0,95997.0,0.05209202]
[1736872513471,0.49570755,95998.0,95997.0,0.05209202]
[1736872513680,0.59570755,95998.0,95997.0,0.05209202]
[1736872514056,0.58918755,95998.0,95997.0,0.05209202]
[1736872514267,0.69993447,95998.0,95997.0,0.05209202]
[1736872514468,0.78093447,95998.0,95976.0,0.01241624]
[1736872514799,0.558411,95964.0,95949.0,0.041741]
[1736872515033,0.69215792,95964.0,95948.0,0.137217]
[1736872515242,0.69215792,95964.0,95945.0,0.137217]
[1736872516064,0.69215792,95964.0,95963.0,0.00094558]
[1736872516912,0.70386026,95964.0,95963.0,0.00094558]
[1736872517321,0.71186026,95964.0,95963.0,0.00094558]
[1736872517525,0.70586026,95964.0,95963.0,0.00094558]
[1736872517735,0.72220069,95964.0,95963.0,0.00094558]
[1736872517940,0.72920069,95964.0,95963.0,0.00094558]
[1736872518143,0.72020069,95964.0,95963.0,0.00094558]
[1736872518341,0.72420069,95964.0,95963.0,0.00094558]
[1736872518549,0.71768069,95964.0,95963.0,0.00094558]
[1736872518758,0.72420069,95964.0,95963.0,0.00094558]
[1736872519547,0.73320069,95964.0,95963.0,0.00094558]
[1736872519760,0.72420069,95964.0,95963.0,0.00094558]
[1736872519963,0.72920069,95964.0,95963.0,0.00094558]
[1736872520164,0.60675143,95964.0,95963.0,0.00094558]
[1736872520454,0.44327143,95964.0,95963.0,0.00094558]
[1736872521239,0.43127143,95964.0,95963.0,0.00094558]
[1736872521656,0.43327143,95964.0,95963.0,0.00094558]
[1736872521857,0.43327143,95964.0,95963.0,0.05260558]
[1736872522507,0.11834043,95964.0,95963.0,0.05260558]
[1736872522713,0.02734043,95964.0,95963.0,0.05260558]
[1736872522915,0.002,95964.0,95963.0,0.05260558]
[1736872523365,0.005,95964.0,95963.0,0.26101858]
[1736872523563,0.002,95964.0,95963.0,0.26101858]
[1736872523790,0.00652,95975.0,95963.0,0.26101858]
[1736872523965,0.008,95964.0,95963.0,0.26101858]
[1736872524163,0.003,95964.0,95963.0,0.26101858]
[1736872524537,0.1,95986.0,95965.0,0.0822]
[1736872524745,0.1,95979.0,95965.0,0.13386]
[1736872524970,0.1,95982.0,95965.0,0.12886]
[1736872524971,0.208395,95972.0,95965.0,0.12886]
[1736872525164,0.208395,95972.0,95965.0,0.05166]
[1736872525370,0.208404,95968.0,95965.0,0.05166]
[1736872525602,0.208395,95972.0,95965.0,0.05166]
[1736872526202,0.211395,95972.0,95965.0,0.05166]
[1736872526372,0.10652,95973.0,95965.0,0.05166]
[1736872526761,0.10652,95973.0,95966.0,0.208407]
[1736872526968,0.00652,95973.0,95966.0,0.260067]
[1736872527207,0.00652,95973.0,95967.0,0.208404]
[1736872527416,0.002,95972.0,95967.0,0.05166]
[1736872527615,0.208398,95970.0,95967.0,0.05166]
[1736872527813,0.1,95968.0,95967.0,0.05166]